lending/lending_fUSD_20240112
["ID","MTS","AMOUNT","RATE_DAILY","PERIOD"]
[311408926,1705077200146,284.85871202,0.00022403,2]
[311408927,1705077200529,2795.46246104,0.0002153,2]
[311408928,1705077201452,715.49721523,0.0002,2]
[311408929,1705077203417,60504.8451,0.00022406,2]
[311408930,1705077229716,500.53276341,0.00031,120]
[311408931,1705077252417,353.02,0.00019849,2]
[311408932,1705077252831,353.02,0.00022113,2]
[311408933,1705077255761,229.99,0.00021814,2]
[311408935,1705077284595,131910.1191,0.00022405,2]
[311408936,1705077287945,2000.0,0.00021767,2]
[311408941,1705077312919,369.43076621,0.00022405,2]
[311408944,1705077317913,369.43076619,0.00022469,2]
[311408945,1705077333535,709.81,0.00021814,2]
[311408946,1705077339474,239.02,0.00021717,2]
[311408947,1705077339849,181.99,0.00021717,2]
[311408948,1705077348829,164.62,0.00021814,2]
[311408949,1705077361535,157.11,0.0002185,2]
[311408950,1705077361779,157.11,0.00022135,2]
[311408951,1705077362180,157.11,0.0002242,2]
[311408952,1705077370027,500.0,0.00022509,15]
[311408953,1705077397787,250.0,0.00021684,2]
[311408954,1705077424379,23900.0,0.00021814,2]
[311408955,1705077453183,221.65845973,0.00022404,2]
[311408956,1705077458182,221.65845971,0.00022406,2]
[311408957,1705077463178,221.65845971,0.00022407,2]
[311408958,1705077468198,221.65845971,0.00022409,2]
[311408959,1705077473175,221.65845971,0.0002241,2]
[311408960,1705077476430,321079.1374,0.00022405,2]
[311408961,1705077477649,1381.0876,0.00022405,2]
[311408962,1705077522346,158.22,0.00021684,2]
[311408963,1705077529188,155.7,0.00021907,2]
[311408965,1705077577077,200.0,0.0002169,2]
[311408966,1705077607768,282.69873682,0.00022449,2]
[311408967,1705077701884,215.30779776,0.0002248,2]
[311408968,1705077701910,212.1575122,0.00022449,2]
[311408969,1705077702003,156.62101118,0.00022449,2]
[311408970,1705077702190,3207.3814279,0.00022449,2]
[311408971,1705077702235,15689.27549142,0.00022449,2]
[311408972,1705077702643,197.74284321,0.00022449,2]
[311408973,1705077702752,155.0,0.00022449,2]
[311408974,1705077702814,208.84882825,0.00022449,2]
[311408975,1705077703463,559.33897738,0.00020027,2]
[311408976,1705077704035,282.90032781,0.00022449,2]
[311408977,1705077704098,189.49317273,0.00020252,2]
[311408978,1705077704612,234.6910861,0.00022449,2]
[311408979,1705077704859,5186.35262149,0.00022449,2]
[311408980,1705077704885,401.90417909,0.00021776,2]
[311408981,1705077704982,844.80069332,0.00022449,2]
[311408982,1705077705009,50510.78554689,0.00022449,2]
[311408983,1705077705237,155.0,0.00022449,2]
[311408984,1705077705572,291.71338211,0.00022449,2]
[311408985,1705077705645,884.27245016,0.00022449,2]
[311408986,1705077705913,280.14979655,0.00022277,2]
[311408987,1705077705973,2471.25996537,0.00021827,2]
[311408988,1705077706856,1096.4632242,0.00022449,2]
[311408989,1705077706990,531.87539742,0.00022449,2]
[311408990,1705077707111,198.21015724,0.00022449,2]
[311408991,1705077707715,482.73685911,0.00018002,2]
[311408992,1705077708219,155.0,0.00022449,2]
[311408993,1705077708973,283.9508442,0.00022449,2]
[311408994,1705077709490,7672.98518074,0.00022337,2]
[311408995,1705077709521,155.61091892,0.00022449,2]
[311408996,1705077709672,6077.73592096,0.00022449,2]
[311408997,1705077709857,226.69801692,0.00022449,2]
[311408998,1705077710099,155.0,0.00022449,2]
[311408999,1705077710137,2176.62447328,0.00022225,2]
[311409000,1705077710381,155.0,0.00022449,2]
[311409001,1705077710609,500.0,0.00022449,2]
[311409002,1705077710840,155.0,0.00022449,2]
[311409003,1705077710950,158.94635899,0.00022449,2]
[311409004,1705077711465,1129.58550091,0.00021376,2]
[311409005,1705077711521,532.13205427,0.00022449,2]
[311409006,1705077712113,155.08480032,0.00022449,2]
[311409007,1705077712341,200.21979921,0.00020251,2]
[311409008,1705077712378,479.0337,0.00022402,2]
[311409009,1705077712824,177.05571491,0.00022449,2]
[311409010,1705077713011,854.32637403,0.00022449,2]
[311409011,1705077713658,1021.99046013,0.00022449,2]
[311409012,1705077714526,580.63847486,0.00022449,2]
[311409013,1705077715495,1597.72739359,0.00017959,2]
[311409014,1705077716523,1682.7061346,0.00022402,2]
[311409015,1705077716592,282.4706336,0.00022449,2]
[311409016,1705077717637,1032.3793498,0.00022449,2]
[311409017,1705077717875,1912.50052547,0.000225,2]
[311409018,1705077718253,15689.27549142,0.00022449,2]
[311409019,1705077718580,3455.2444,0.00022405,2]
[311409020,1705077719005,50510.78554689,0.00022449,2]
[311409021,1705077719414,543.69034289,0.00022449,2]
[311409022,1705077720005,156.62101118,0.00022449,2]
[311409023,1705077720083,3207.3814279,0.00022449,2]
[311409024,1705077720603,234.6910861,0.00022449,2]
[311409025,1705077721218,155.0,0.00022449,2]
[311409026,1705077722841,1096.4632242,0.00022449,2]
[311409027,1705077723029,531.87539742,0.00022449,2]
[311409028,1705077723568,282.90032781,0.00022449,2]
[311409029,1705077723639,884.27245016,0.00022449,2]
[311409030,1705077723728,234.05984529,0.000225,2]
[311409031,1705077723870,215.20880256,0.00022478,2]
[311409032,1705077725142,401.60215391,0.00021776,2]
[311409033,1705077725646,2000.0,0.00021684,2]
[311409034,1705077725680,1012.0,0.000225,2]
[311409035,1705077726749,155.0,0.00022449,2]
[311409036,1705077726884,1238.17726162,0.00022449,2]
[311409037,1705077726959,283.9508442,0.00022449,2]
[311409038,1705077727041,354.21176018,0.00022401,2]
[311409039,1705077728373,256.28985269,0.00022449,2]
[311409040,1705077729651,1021.22851747,0.00022449,2]
[311409041,1705077729698,6077.73592096,0.00022449,2]
[311409042,1705077730126,2176.62447328,0.00022225,2]
[311409043,1705077730204,155.60662019,0.00022449,2]
[311409044,1705077730677,405.9212378,0.000225,2]
[311409045,1705077730826,177.05571491,0.00022449,2]
[311409046,1705077730888,155.0,0.00022449,2]
[311409047,1705077731573,100000.0,0.00022404,2]
[311409048,1705077731622,1032.3793498,0.00022449,2]
[311409049,1705077732029,354.21176,0.0002241,2]
[311409050,1705077733895,281.35204841,0.00022401,2]
[311409051,1705077734933,250.16449949,0.00022402,2]
[311409052,1705077735491,1597.72739359,0.00017959,2]
[311409053,1705077735997,156.43714055,0.00022449,2]
[311409054,1705077736571,281.55513314,0.00022449,2]
[311409055,1705077737024,354.21176,0.00022418,2]
[311409056,1705077738082,3207.3814279,0.00022449,2]
[311409057,1705077738286,9871.15262965,0.00022449,2]
[311409058,1705077738602,234.6910861,0.00022449,2]
[311409059,1705077738840,1096.4632242,0.00022449,2]
[311409060,1705077739042,531.87539742,0.00022449,2]
[311409061,1705077739223,270.57667193,0.00022449,2]
[311409062,1705077739249,129206.37916907,0.000225,2]
[311409063,1705077739563,282.90032781,0.00022449,2]
[311409064,1705077739892,18948.40984176,0.00022449,2]
[311409065,1705077739944,281.35204841,0.00022402,2]
[311409066,1705077741008,50510.78554689,0.00022449,2]
[311409067,1705077742039,354.21176,0.00022427,2]
[311409068,1705077742190,345.98728675,0.00022491,2]
[311409069,1705077742942,283.9508442,0.00022449,2]
[311409070,1705077743398,543.69034289,0.00022449,2]
[311409071,1705077745023,266.6500919,0.00022449,2]
[311409072,1705077745062,155.0,0.00022449,2]
[311409073,1705077745636,883.38240312,0.00022449,2]
[311409074,1705077745904,281.35204841,0.00022402,2]
[311409075,1705077746098,57862.32204511,0.000225,2]
[311409076,1705077746132,2176.62447328,0.00022225,2]
[311409077,1705077746662,609.2614061,0.00022449,2]
[311409078,1705077747019,354.21176,0.00022435,2]
[311409079,1705077748601,500.0,0.00022449,2]
[311409080,1705077749324,24317.54610841,0.000225,2]
[311409081,1705077749640,1032.3793498,0.00022449,2]
[311409082,1705077749676,6070.51279396,0.00022449,2]
[311409083,1705077750820,177.05571491,0.00022449,2]
[311409084,1705077751880,18948.40984176,0.00022449,2]
[311409085,1705077752005,354.21176,0.00022444,2]
[311409086,1705077754071,1597.72739359,0.00017959,2]
[311409087,1705077754159,2500.0,0.00022405,2]
[311409088,1705077755355,129206.37916907,0.000225,2]
[311409089,1705077756085,436.19632635,0.00022449,2]
[311409090,1705077756669,155.0,0.00022449,30]
[311409091,1705077757015,354.21176,0.00022452,2]
[311409092,1705077758083,4698.35903998,0.000225,2]
[311409093,1705077758944,171.71449367,0.00022449,2]
[311409094,1705077758990,531.87539742,0.00022449,2]
[311409095,1705077759551,155.0,0.0002,2]
[311409096,1705077759583,282.45033029,0.00022449,2]
[311409097,1705077760845,1094.71890456,0.00022449,2]
[311409098,1705077761201,386.53762894,0.00022499,2]
[311409099,1705077761398,543.05693786,0.00022449,2]
[311409100,1705077761841,203.4025,0.00022402,2]
[311409101,1705077762048,354.21176,0.00022461,2]
[311409102,1705077762131,2176.62447328,0.00022225,2]
[311409103,1705077762604,234.6910861,0.00022449,2]
[311409104,1705077762672,609.2614061,0.00022449,2]
[311409105,1705077763310,3826.55158,0.000225,2]
[311409106,1705077763930,2294.55917338,0.000225,2]
[311409107,1705077764599,500.0,0.00022449,2]
[311409108,1705077765008,50510.78554689,0.00022449,2]
[311409109,1705077765563,1892.11622104,0.00022449,2]
[311409110,1705077767024,354.21176,0.0002247,2]
[311409111,1705077767831,403.85382049,0.000225,2]
[311409112,1705077767963,265.185965,0.000225,2]
[311409113,1705077768740,155.0,0.00022449,2]
[311409114,1705077769293,176.79252679,0.00022449,2]
[311409115,1705077771630,493.38170752,0.00022449,2]
[311409116,1705077771885,251.33642847,0.00022449,2]
[311409117,1705077772012,473.8673768,0.000225,2]
[311409118,1705077772388,354.21176,0.00022478,2]
[311409119,1705077774672,155.0,0.00022449,30]
[311409120,1705077775508,1595.46368675,0.00017959,2]
[311409121,1705077775820,155.0,0.0002,2]
[311409122,1705077777087,354.21176,0.00022487,2]
[311409123,1705077777203,386.3638256,0.000225,2]
[311409124,1705077777237,29531.36267771,0.000225,2]
[311409125,1705077779285,500.0,0.0002169,2]
[311409126,1705077779403,1892.11622104,0.00022449,2]
[311409127,1705077779487,-150.0,0.000225,2]
[311409128,1705077779699,-150.0,0.000225,2]
[311409129,1705077779776,-150.0,0.000225,2]
[311409130,1705077779902,-150.0,0.000225,2]
[311409131,1705077779990,-150.0,0.000225,2]
[311409132,1705077780031,-150.0,0.000225,2]
[311409133,1705077780065,-150.0,0.000225,2]
[311409134,1705077780133,-150.0,0.000225,2]
[311409135,1705077780237,-150.0,0.000225,2]
[311409136,1705077780262,-150.0,0.000225,2]
[311409137,1705077780292,-150.0,0.000225,2]
[311409138,1705077780317,-150.0,0.000225,2]
[311409139,1705077780342,-150.0,0.000225,2]
[311409140,1705077780382,-150.0,0.000225,2]
[311409141,1705077780411,-150.0,0.000225,2]
[311409142,1705077780439,-150.0,0.000225,2]
[311409143,1705077780731,-150.0,0.000225,2]
[311409144,1705077780798,-150.0,0.000225,2]
[311409145,1705077780827,-150.0,0.000225,2]
[311409146,1705077780856,500.0,0.00022449,2]
[311409147,1705077780887,-150.0,0.000225,2]
[311409148,1705077780933,-150.0,0.000225,2]
[311409149,1705077780966,-150.0,0.000225,2]
[311409150,1705077780998,-150.0,0.000225,2]
[311409151,1705077781023,-150.0,0.000225,2]
[311409152,1705077781049,-150.0,0.000225,2]
[311409153,1705077781080,-150.0,0.000225,2]
[311409154,1705077781107,-150.0,0.000225,2]
[311409155,1705077781140,631.84565968,0.00022449,2]
[311409156,1705077781165,-150.0,0.000225,2]
[311409157,1705077781192,29619.44795897,0.00022449,2]
[311409158,1705077781226,-190.47,0.000225,2]
[311409160,1705077782025,354.21176,0.00022495,2]
[311409161,1705077782657,338.54942042,0.00022449,2]
[311409162,1705077783502,150.0,0.000216,2]
[311409163,1705077784611,234.6910861,0.00022449,2]
[311409164,1705077784769,150.0,0.00022148,2]
[311409165,1705077785453,500.89319127,0.00022499,2]
[311409166,1705077786445,248.46308844,0.00022499,2]
[311409167,1705077787277,260.44,0.00021702,2]
[311409168,1705077787807,1135.27978758,0.00022499,2]
[311409169,1705077788135,1831.11597489,0.00022225,2]
[311409172,1705077788557,363.66366697,0.00022499,2]
[311409173,1705077788753,1044.22309217,0.00022499,2]
[311409174,1705077791898,1042.80807396,0.00022499,2]
[311409175,1705077792160,155.0,0.00022499,2]
[311409176,1705077794233,559.2,0.00021853,2]
[311409177,1705077794426,559.2,0.00021913,2]
[311409178,1705077794673,559.2,0.00021973,2]
[311409179,1705077794871,559.2,0.00022032,2]
[311409180,1705077795109,559.2,0.00022092,2]
[311409181,1705077795335,559.2,0.00022152,2]
[311409182,1705077795766,559.2,0.00022212,2]
[311409183,1705077796007,559.2,0.00022272,2]
[311409184,1705077796417,559.2,0.00022332,2]
[311409185,1705077796525,559.2,0.00022392,2]
[311409186,1705077796779,559.2,0.00022452,2]
[311409187,1705077796945,705.41846479,0.000224,2]
[311409188,1705077797422,189.94370278,0.00022449,2]
[311409189,1705077797553,155.0,0.0002,2]
[311409190,1705077797635,942.80167768,0.00022499,2]
[311409191,1705077798600,500.0,0.00022449,2]
[311409192,1705077800003,500.66975351,0.00022499,2]
[311409193,1705077800745,411051.0,0.00022277,2]
[311409194,1705077801127,1223.73555236,0.00022499,2]
[311409195,1705077802736,1044.22309217,0.00022499,2]
[311409196,1705077803845,1134.74337926,0.00022499,2]
[311409197,1705077804445,248.46308844,0.00022499,2]
[311409198,1705077805338,384.9,0.0002169,2]
[311409199,1705077806705,363.50414281,0.00022499,2]
[311409200,1705077806733,234.6910861,0.00022449,2]
[311409201,1705077807134,514.08,0.00019766,2]
[311409202,1705077807469,514.08,0.0002203,2]
[311409203,1705077808168,155.0,0.00022499,2]
[311409204,1705077811886,1042.80807396,0.00022499,2]
[311409205,1705077815560,168.24423955,0.0002,2]
[311409206,1705077815625,250.0,0.0002169,2]
[311409207,1705077816603,500.0,0.00022449,2]
[311409208,1705077820160,68000.2219,0.00022404,2]
[311409209,1705077822449,248.46308844,0.00022499,2]
[311409210,1705077823223,200.0,0.0002169,2]
[311409211,1705077826715,234.6910861,0.00022449,2]
[311409212,1705077826743,1044.22309217,0.00022499,2]
[311409213,1705077829888,1042.80807396,0.00022499,2]
[311409214,1705077831325,164.98,0.0002169,2]
[311409215,1705077836610,500.0,0.00022449,2]
[311409216,1705077838342,342.31445017,0.00022402,2]
[311409217,1705077842477,248.2337824,0.00022499,2]
[311409218,1705077843331,342.31445013,0.00022427,2]
[311409219,1705077847070,275.06,0.0002169,2]
[311409220,1705077848313,342.31445013,0.00022451,2]
[311409221,1705077848618,184.86404892,0.00022449,2]
[311409222,1705077848741,1043.32513353,0.00022499,2]
[311409223,1705077849895,1042.11624135,0.00022499,2]
[311409224,1705077850514,473.8673768,0.00022499,2]
[311409225,1705077852348,403.85382049,0.00022499,2]
[311409226,1705077853325,342.31445013,0.00022476,2]
[311409227,1705077866340,403.85382049,0.00022499,2]
[311409228,1705077866508,473.52694514,0.00022499,2]
[311409229,1705077870591,14120.57,0.00021577,2]
[311409230,1705077874070,432.3617,0.00022405,2]
[311409231,1705077884350,403.50849589,0.00022499,2]
[311409232,1705077901654,300.0,0.00022499,2]
[311409233,1705077901732,272.2365,0.00022499,2]
[311409234,1705077905323,30879.4459,0.00022402,2]
[311409235,1705077910517,7094.18,0.0002169,2]
[311409236,1705077911235,23900.0,0.0002157,2]
[311409237,1705077913309,333757.9931,0.00022402,2]
[311409238,1705077914617,546.42712196,0.00022405,2]
[311409239,1705077914875,5095.28107249,0.00022499,2]
[311409240,1705077925225,1852.42,0.0002157,2]
[311409241,1705077930847,4074.18758129,0.00022499,2]
[311409242,1705077932482,881.7444,0.00022402,2]
[311409243,1705077938756,2705.0,0.0002157,2]
[311409244,1705077949779,1000.0,0.00022402,2]
[311409245,1705077951906,155.11,0.00021785,2]
[311409246,1705077952147,155.11,0.00022371,2]
[311409247,1705077957105,-305.64724086,0.000225,2]
[311409248,1705077957124,-2294.55917338,0.000225,2]
[311409249,1705077957144,-18683.76075445,0.000225,2]
[311409250,1705077957163,-265.06708994,0.000225,2]
[311409251,1705077957185,-190.75855552,0.000225,2]
[311409252,1705077957208,-200.0,0.000225,2]
[311409253,1705077957228,-380.58776956,0.000225,2]
[311409254,1705077957249,-524.45762012,0.00022501,2]
[311409255,1705077957271,-252.23869713,0.00022501,2]
[311409256,1705077957291,-202.99000451,0.00022501,2]
[311409257,1705077957310,-400.0,0.00022501,2]
[311409258,1705077957329,-286.26475442,0.00022501,2]
[311409259,1705077957350,-233.82560412,0.00022501,2]
[311409260,1705077957369,-7447.14273576,0.00022501,2]
[311409261,1705077964053,342.31445013,0.00022402,2]
[311409262,1705077982330,155.0,0.0002169,2]
[311409263,1705078002349,840.0,0.0002169,2]
[311409264,1705078005291,1079.1827,0.00022402,2]
[311409265,1705078007319,166.9,0.0002169,2]
[311409266,1705078014497,1263.95,0.000224,2]
[311409267,1705078025374,166.22,0.0002169,2]
[311409268,1705078025624,166.22,0.00021804,2]
[311409269,1705078025917,166.22,0.00021918,2]
[311409270,1705078026186,166.22,0.00022032,2]
[311409271,1705078026420,166.22,0.00022147,2]
[311409272,1705078026634,166.22,0.00022261,2]
[311409273,1705078026860,166.22,0.00022375,2]
[311409274,1705078027086,166.22,0.00022489,2]
[311409275,1705078032114,-2294.55917338,0.000225,2]
[311409276,1705078032133,-190.75855552,0.000225,2]
[311409277,1705078032152,-1589.97175452,0.00022501,2]
[311409278,1705078034826,176.09,0.00021599,2]
[311409279,1705078036181,336.69772468,0.00022147,2]
[311409280,1705078036408,189.97,0.00022142,2]
[311409281,1705078040994,256.48,0.00021599,2]
[311409282,1705078042262,512.26,0.00021736,2]
[311409283,1705078049454,1042.08341567,0.00022499,2]
[311409284,1705078073781,6079.2175,0.00022402,2]
[311409286,1705078092509,200.0,0.00021595,2]
[311409287,1705078109157,302.29,0.00021595,2]
[311409288,1705078129658,114729.5905,0.00022402,2]
[311409289,1705078149918,417.34873446,0.00022401,2]
[311409290,1705078163332,2000.0,0.0002159,2]
[311409291,1705078196864,1000.0,0.00022402,2]
[311409292,1705078215771,500.0,0.00021681,2]
[311409332,1705078233371,-253.72517972,0.000225,2]
[311409333,1705078233381,-22166.77249274,0.00022501,2]
[311409334,1705078233393,-524.83164077,0.00022501,2]
[311409335,1705078233448,-507.17379745,0.00022501,2]
[311409336,1705078233458,-155.68058134,0.00022501,2]
[311409337,1705078233468,-1654.6697476,0.00022501,2]
[311409338,1705078233479,-2054.22387362,0.00022501,2]
[311409339,1705078233496,-491.33478147,0.00022501,2]
[311409340,1705078233527,-1736.60438795,0.00022501,2]
[311409341,1705078233537,-18965.09955286,0.00022501,2]
[311409342,1705078233548,-17720.0,0.00022502,2]
[311409343,1705078233557,-159.98061969,0.00022502,2]
[311409344,1705078233568,-158.96797182,0.00022502,2]
[311409345,1705078233578,-4040.77002336,0.00022502,2]
[311409346,1705078233590,-1055555.73341897,0.00022502,2]
[311409347,1705078233600,-155.27713894,0.00022502,2]
[311409348,1705078233609,-3315.33985506,0.00022502,2]
[311409349,1705078233619,-442.79657827,0.00022502,2]
[311409350,1705078233628,-155.43758441,0.00022502,2]
[311409351,1705078233638,-757.88721717,0.00022502,2]
[311409352,1705078233648,-2136.50191239,0.00022502,2]
[311409353,1705078233658,-202.40022443,0.00022502,2]
[311409354,1705078233669,-234.85086633,0.00022502,2]
[311409355,1705078233678,-1769.55009119,0.00022502,2]
[311409356,1705078233688,-646.47146159,0.00022502,2]
[311409357,1705078233698,-326.58918329,0.00022502,2]
[311409358,1705078233708,-207.56937403,0.00022503,2]
[311409359,1705078233718,-2018.10308734,0.00022503,2]
[311409360,1705078233728,-3914.75022419,0.00022503,2]
[311409361,1705078233738,-500.0,0.00022505,2]
[311409362,1705078233747,-500.0,0.00022505,2]
[311409363,1705078233757,-500.0,0.00022505,2]
[311409364,1705078233769,-500.0,0.00022505,2]
[311409365,1705078233779,-500.0,0.00022505,2]
[311409367,1705078233789,-500.0,0.00022505,2]
[311409369,1705078233799,-500.0,0.00022505,2]
[311409371,1705078233808,-500.0,0.00022505,2]
[311409373,1705078233818,-500.0,0.00022505,2]
[311409374,1705078233828,-500.0,0.00022505,2]
[311409375,1705078233840,-500.0,0.00022505,2]
[311409376,1705078233850,-500.0,0.00022505,2]
[311409377,1705078233860,-500.0,0.00022505,2]
[311409378,1705078233870,-500.0,0.00022505,2]
[311409379,1705078233880,-500.0,0.00022505,2]
[311409380,1705078233889,-500.0,0.00022505,2]
[311409381,1705078233899,-500.0,0.00022505,2]
[311409382,1705078233909,-500.0,0.00022505,2]
[311409383,1705078233919,-541.06942263,0.00022505,2]
[311409384,1705078233929,-500.0,0.00022505,2]
[311409385,1705078233938,-500.0,0.00022505,2]
[311409386,1705078233948,-500.0,0.00022505,2]
[311409387,1705078233958,-500.0,0.00022505,2]
[311409388,1705078233967,-500.0,0.00022505,2]
[311409389,1705078233976,-500.0,0.00022505,2]
[311409390,1705078233986,-500.0,0.00022505,2]
[311409391,1705078233996,-500.0,0.00022505,2]
[311409392,1705078234006,-500.0,0.00022505,2]
[311409393,1705078234015,-500.0,0.00022505,2]
[311409394,1705078234024,-529.90081865,0.00022505,2]
[311409395,1705078234034,-500.0,0.00022505,2]
[311409396,1705078234043,-500.0,0.00022505,2]
[311409397,1705078234053,-500.0,0.00022505,2]
[311409398,1705078234064,-500.0,0.00022505,2]
[311409399,1705078234074,-500.0,0.00022505,2]
[311409400,1705078234086,-500.0,0.00022505,2]
[311409401,1705078234097,-500.0,0.00022505,2]
[311409402,1705078234107,-500.0,0.00022505,2]
[311409403,1705078234116,-500.0,0.00022505,2]
[311409404,1705078234125,-500.0,0.00022505,2]
[311409405,1705078234135,-500.0,0.00022505,2]
[311409406,1705078234144,-500.0,0.00022505,2]
[311409407,1705078234154,-500.0,0.00022505,2]
[311409408,1705078234164,-506.63361334,0.00022505,2]
[311409409,1705078234173,-500.0,0.00022505,2]
[311409410,1705078234183,-500.0,0.00022505,2]
[311409411,1705078234193,-500.0,0.00022505,2]
[311409412,1705078234203,-500.0,0.00022505,2]
[311409413,1705078234212,-177.65129562,0.00022505,2]
[311409414,1705078234222,-500.0,0.00022505,2]
[311409415,1705078234232,-500.0,0.00022505,2]
[311409416,1705078234241,-500.0,0.00022505,2]
[311409417,1705078234251,-500.0,0.00022505,2]
[311409418,1705078234260,-500.0,0.00022505,2]
[311409419,1705078234270,-500.0,0.00022505,2]
[311409420,1705078234278,-500.0,0.00022505,2]
[311409421,1705078234288,-500.0,0.00022505,2]
[311409422,1705078234297,-500.0,0.00022505,2]
[311409423,1705078234307,-500.0,0.00022505,2]
[311409424,1705078234316,-500.0,0.00022505,2]
[311409425,1705078234326,-500.0,0.00022505,2]
[311409426,1705078234337,-520.10329075,0.00022505,2]
[311409427,1705078234347,-500.0,0.00022505,2]
[311409428,1705078234356,-500.0,0.00022505,2]
[311409429,1705078234365,-500.0,0.00022505,2]
[311409430,1705078234374,-500.0,0.00022505,2]
[311409431,1705078234384,-500.0,0.00022505,2]
[311409432,1705078234395,-500.0,0.00022505,2]
[311409433,1705078234405,-500.0,0.00022505,2]
[311409434,1705078234415,-500.0,0.00022505,2]
[311409435,1705078234425,-500.0,0.00022505,2]
[311409436,1705078234435,-500.0,0.00022505,2]
[311409437,1705078234445,-500.0,0.00022505,2]
[311409438,1705078234454,-500.0,0.00022505,2]
[311409439,1705078234464,-500.0,0.00022505,2]
[311409440,1705078234473,-500.0,0.00022505,2]
[311409441,1705078234482,-500.0,0.00022505,2]
[311409442,1705078234492,-500.0,0.00022505,2]
[311409443,1705078234501,-500.0,0.00022505,2]
[311409444,1705078234511,-500.0,0.00022505,2]
[311409445,1705078234520,-500.0,0.00022505,2]
[311409446,1705078234530,-500.0,0.00022505,2]
[311409447,1705078234539,-500.0,0.00022505,2]
[311409448,1705078234548,-500.0,0.00022505,2]
[311409449,1705078234558,-500.0,0.00022505,2]
[311409450,1705078234568,-500.0,0.00022505,2]
[311409451,1705078234578,-500.0,0.00022505,2]
[311409452,1705078234588,-500.0,0.00022505,2]
[311409453,1705078234597,-500.0,0.00022505,2]
[311409454,1705078234606,-500.0,0.00022505,2]
[311409455,1705078234616,-500.0,0.00022505,2]
[311409456,1705078234625,-500.0,0.00022505,2]
[311409457,1705078234635,-500.0,0.00022505,2]
[311409458,1705078234644,-500.0,0.00022505,2]
[311409459,1705078234654,-500.0,0.00022505,2]
[311409460,1705078234663,-500.0,0.00022505,2]
[311409461,1705078234672,-500.0,0.00022505,2]
[311409462,1705078234682,-500.0,0.00022505,2]
[311409463,1705078234691,-500.0,0.00022505,2]
[311409464,1705078234701,-500.0,0.00022505,2]
[311409465,1705078234709,-500.0,0.00022505,2]
[311409466,1705078234719,-511.69279575,0.00022505,2]
[311409467,1705078234728,-500.0,0.00022505,2]
[311409468,1705078234737,-500.0,0.00022505,2]
[311409469,1705078234747,-500.0,0.00022505,2]
[311409470,1705078234756,-500.0,0.00022505,2]
[311409471,1705078234765,-500.0,0.00022505,2]
[311409472,1705078234775,-500.0,0.00022505,2]
[311409473,1705078234785,-500.0,0.00022505,2]
[311409474,1705078234794,-500.0,0.00022505,2]
[311409475,1705078234804,-500.0,0.00022505,2]
[311409476,1705078234814,-508.05073743,0.00022505,2]
[311409477,1705078234823,-500.0,0.00022505,2]
[311409478,1705078234833,-500.0,0.00022505,2]
[311409479,1705078234844,-506.28745476,0.00022505,2]
[311409480,1705078234854,-500.0,0.00022505,2]